bitfinex/quotes_SOLUSD_20241008
["timestamp","ask_amount","ask_price","bid_price","bid_amount"]
[1728394200787,8.25386553,143.59,143.47,34.8488]
[1728394200788,8.25386553,143.59,143.51,15.6546]
[1728394200990,6.9665,143.55,143.5,24.3894]
[1728394201171,8.70886753,143.54,143.5,17.4209]
[1728394201371,1.74186789,143.58,143.51,6.9678]
[1728394201669,6.9665,143.55,143.5,24.3893]
[1728394201873,1.74186046,143.54,143.5,24.3893]
[1728394202065,6.9665,143.55,143.5,24.3893]
[1728394202268,31.20225781,143.59,143.5,17.4209]
[1728394202269,8.70862311,143.54,143.5,17.4209]
[1728394202467,23.902374,143.53,143.46,6.9702]
[1728394202797,6.969,143.5,143.45,6.971]
[1728394203094,6.6051,143.52,143.46,18.81981979]
[1728394203387,1.74206435,143.53,143.48,17.4237]
[1728394203578,6.9677,143.52,143.48,24.3931]
[1728394204083,6.9683,143.51,143.47,6.9696]
[1728394204289,6.9691,143.49,143.45,24.3978]
[1728394204480,8.71243917,143.48,143.44,6.9715]
[1728394204687,6.9696,143.48,143.44,24.3999]
[1728394204875,41.321874,143.52,143.4,34.8655]
[1728394205192,0.12549,143.51,143.43,17.4297]
[1728394205492,6.9697,143.48,143.43,24.4013]
[1728394205667,1.74262589,143.52,143.49,6.969]
[1728394205865,1.74202833,143.54,143.47,17.4247]
[1728394206066,1.74202833,143.54,143.44,20.42792731]
[1728394206067,8.70872833,143.54,143.44,20.42792731]
[1728394206264,6.9681,143.51,143.47,6.9699]
[1728394206609,6.9677,143.52,143.47,6.9699]
[1728394206984,15.5546,143.55,143.46,17.4258]
[1728394207180,15.5546,143.55,143.46,24.3963]
[1728394207181,24.027864,143.53,143.46,24.3963]
[1728394207380,1.7423535,143.52,143.47,1.3938828]
[1728394207575,6.9682,143.51,143.47,1.3938828]
[1728394207805,1.7423535,143.52,143.49,6.9688]
[1728394208305,6.9673,143.53,143.49,8.36285383]
[1728394208496,8.70899229,143.54,143.49,8.36285383]
[1728394209010,6.9673,143.53,143.49,6.9691]
[1728394209199,8.70938355,143.53,143.49,6.9691]
[1728394209702,8.70938355,143.53,143.49,8.36271899]
[1728394210085,8.70938355,143.53,143.49,6.9691]
[1728394210293,6.9673,143.53,143.49,6.9691]
[1728394210995,1.7420228,143.52,143.49,6.9691]
[1728394211379,1.7420228,143.52,143.43,34.8579]
[1728394211584,8.7098228,143.52,143.48,6.9696]
[1728394211779,8.7098228,143.52,143.44,0.25098]
[1728394211982,8.7098228,143.52,143.47,17.4247]
[1728394211983,6.9687,143.5,143.47,17.4247]
[1728394212192,8.71192878,143.49,143.44,24.3996]
[1728394212380,8.71192878,143.49,143.45,6.971]
[1728394212578,6.9697,143.48,143.44,17.4282]
[1728394212793,6.9697,143.48,143.41,17.4319]
[1728394212794,1.74255934,143.47,143.41,17.4319]
[1728394213086,23.902374,143.46,143.38,17.4356]
[1728394213296,6.9725,143.43,143.38,17.4356]
[1728394213481,6.9716,143.44,143.4,6.9734]
[1728394213911,6.9716,143.44,143.4,24.4066]
[1728394214210,1.7430848,143.43,143.38,6.9743]
[1728394214409,23.902374,143.45,143.37,17.4364]
[1728394214613,1.74337284,143.44,143.37,17.4364]
[1728394214789,6.9728,143.42,143.38,6.9744]
[1728394215189,6.9721,143.43,143.38,8.36908946]
[1728394215392,1.74332946,143.42,143.39,1.39466357]
[1728394215594,6.9721,143.43,143.39,1.39466357]
[1728394216100,1.74327853,143.42,143.39,1.39462282]
[1728394216310,1.74331114,143.42,143.38,6.9744]
[1728394216498,6.6324,143.41,143.31,22.5716]
[1728394216835,6.9746,143.38,143.34,17.4402]
[1728394217036,1.74383488,143.38,143.33,6.9768]
[1728394217200,6.975,143.37,143.32,6.9772]
[1728394217385,8.71939974,143.36,143.31,24.4218]
[1728394217686,8.71949974,143.36,143.31,24.4218]
[1728394218402,1.74402798,143.39,143.32,1.39522238]
[1728394218604,6.75789,143.41,143.33,24.027864]
[1728394218605,6.6324,143.41,143.33,24.027864]
[1728394218798,6.6324,143.41,143.38,6.974]
[1728394219018,6.6324,143.41,143.37,24.4116]
[1728394219398,8.71549209,143.43,143.39,6.9738]
[1728394219586,8.71549209,143.43,143.37,17.4368]
[1728394219791,8.71549209,143.43,143.33,24.027864]
[1728394219989,8.71549209,143.43,143.39,6.9739]
[1728394221607,15.98445283,143.43,143.39,6.9739]
[1728394221809,7.26896074,143.43,143.4,8.36795059]
[1728394221987,7.26896074,143.43,143.38,17.4351]
[1728394222185,7.26896074,143.43,143.39,6.9738]
[1728394222999,7.26896074,143.43,143.4,6.9733]
[1728394223318,17.11390531,143.48,143.44,6.9714]
[1728394223551,1.74264114,143.48,143.45,6.9708]
[1728394223819,9.00920315,143.48,143.45,6.9708]
[1728394224122,9.00920315,143.48,143.38,55.29792731]
[1728394224123,7.26656201,143.48,143.46,6.9705]
[1728394224321,9.00893072,143.48,143.38,62.28092731]
[1728394224623,6.9709,143.46,143.42,17.4305]
[1728394224802,6.9707,143.46,143.42,24.4026]
[1728394225123,6.9707,143.46,143.42,17.4305]
[1728394225429,1.74283879,143.47,143.42,24.4029]
[1728394225727,1.74283879,143.47,143.43,8.36585238]
[1728394226027,15.97897016,143.48,143.43,8.36585238]
[1728394226197,9.00927016,143.48,143.43,1.39425238]
[1728394226399,7.26656201,143.48,143.41,34.8627]
[1728394226597,15.97902735,143.48,143.43,24.4012]
[1728394226833,15.97902735,143.48,143.44,6.9715]
[1728394227015,9.00902735,143.48,143.43,17.4293]
[1728394227196,7.26656201,143.48,143.45,6.9709]
[1728394227517,14.23616201,143.48,143.43,17.4293]
[1728394227717,7.26656201,143.48,143.45,6.9709]
[1728394228225,1.74253785,143.47,143.43,17.4293]
[1728394228395,9.00921156,143.48,143.44,6.9713]
[1728394228597,7.26656201,143.48,143.44,6.9713]
[1728394228906,15.97886116,143.48,143.43,24.4012]
[1728394229340,6.9701,143.47,143.43,24.4012]
[1728394229540,8.71344074,143.46,143.4,17.4329]
[1728394229733,8.71344074,143.46,143.42,6.9723]
[1728394229936,6.9711,143.45,143.41,6.9729]
[1728394230150,1.74295275,143.44,143.4,17.4329]
[1728394230363,6.9728,143.42,143.37,24.4113]
[1728394230540,0.12549,143.45,143.37,24.4113]
[1728394230541,6.9722,143.43,143.38,6.974]
[1728394231042,6.9722,143.43,143.39,6.9739]
[1728394232049,1.74326309,143.45,143.4,8.36791914]
[1728394232240,1.74326309,143.45,143.4,1.39461914]
[1728394232443,1.74297653,143.46,143.43,17.4296]
[1728394232633,1.74296723,143.47,143.43,24.4011]
[1728394233149,15.9789896,143.48,143.44,8.36558207]
[1728394233895,7.26656201,143.48,143.45,6.971]
[1728394234028,7.26656201,143.48,143.44,1.39415329]
[1728394234223,14.23616201,143.48,143.44,6.9714]
[1728394234432,7.26656201,143.48,143.44,1.39403632]
[1728394234649,7.26656201,143.48,143.46,6.9702]
[1728394234861,7.26656201,143.48,143.46,8.36413245]
[1728394235035,7.26656201,143.48,143.45,17.4273]
[1728394235356,14.23626201,143.48,143.45,17.4273]
[1728394235727,7.26656201,143.48,143.46,1.39397037]
[1728394236551,7.26656201,143.48,143.45,17.4273]
[1728394236762,7.26656201,143.48,143.46,6.9705]
[1728394237141,7.26656201,143.48,143.45,24.3982]
[1728394239639,7.26656201,143.48,143.45,17.4273]
[1728394239961,7.26656201,143.48,143.47,6.97]
[1728394240161,22.339,143.51,143.47,6.97]
[1728394240367,22.339,143.51,143.47,8.36383035]
[1728394240545,29.6076995,143.51,143.47,8.36383035]
[1728394240988,29.6076995,143.51,143.47,1.39383035]
[1728394241267,29.6077995,143.51,143.45,17.4273]
[1728394241446,1.74224129,143.5,143.45,24.3982]
[1728394241643,1.74224129,143.5,143.41,51.4112]
[1728394241644,1.74224129,143.5,143.42,17.4304]
[1728394241855,6.9702,143.47,143.43,6.9717]
[1728394242661,6.9697,143.48,143.43,6.9717]
[1728394242862,6.9697,143.48,143.44,8.36535102]
[1728394243543,1.74224129,143.5,143.41,16.5483]
[1728394243744,22.6394995,143.51,143.46,17.4259]
[1728394244074,6.9697,143.48,143.43,17.4292]
[1728394244576,6.9701,143.47,143.43,24.4011]
[1728394245472,6.9705,143.46,143.42,6.9724]
[1728394245770,23.902374,143.49,143.39,6.4712]
[1728394245952,6.9708,143.46,143.42,24.4032]
[1728394247266,6.971,143.45,143.42,17.4309]
[1728394247472,6.971,143.45,143.39,17.434]
[1728394247778,41.325574,143.49,143.39,17.434]
[1728394247779,1.74296318,143.44,143.39,17.434]
[1728394247948,16.4941,143.44,143.36,17.4377]
[1728394248147,6.9725,143.42,143.38,24.4102]
[1728394248353,6.9733,143.41,143.37,6.9748]
[1728394248647,1.74318115,143.43,143.34,15.5611]
[1728394248648,1.74334353,143.43,143.35,17.4388]
[1728394248864,6.9726,143.42,143.38,6.9744]
[1728394249255,6.9726,143.42,143.37,17.4371]
[1728394249449,6.9735,143.4,143.37,17.4371]
[1728394249648,1.74337055,143.43,143.34,17.4403]
[1728394249966,6.9736,143.4,143.36,6.975]
[1728394250763,7.26748133,143.39,143.37,8.36954188]
[1728394250966,1.74337055,143.43,143.37,1.39474188]
[1728394251153,8.71547055,143.43,143.39,6.9739]
[1728394251354,7.2675989,143.42,143.39,8.36849177]
[1728394251660,8.71547055,143.43,143.39,8.36849177]
[1728394251873,15.98284054,143.43,143.38,24.41]
[1728394252980,15.98284054,143.43,143.39,6.9738]
[1728394253284,7.26736999,143.43,143.41,6.973]
[1728394253486,8.71465144,143.45,143.41,6.973]
[1728394253674,15.98353335,143.45,143.41,6.973]
[1728394253978,14.24028191,143.45,143.42,1.39446435]
[1728394254195,7.26888191,143.45,143.43,6.9717]
[1728394254368,13.0214,143.47,143.43,6.9717]
[1728394254780,14.76415223,143.47,143.43,6.9717]
[1728394254978,6.0513,143.47,143.44,8.36560174]
[1728394255167,14.23753505,143.48,143.44,25.79390174]
[1728394255499,14.23753505,143.48,143.44,24.3997]
[1728394255789,14.23753505,143.48,143.45,1.39406866]
[1728394256084,14.23753505,143.48,143.44,24.3997]
[1728394258289,14.23753505,143.48,143.44,17.4285]
[1728394258496,6.9704,143.47,143.42,6.9723]
[1728394258786,8.71298772,143.47,143.42,6.9723]
[1728394259568,6.9704,143.47,143.42,6.9723]
[1728394259771,6.9704,143.47,143.43,8.36601233]
[1728394260088,7.26753505,143.48,143.46,6.9705]
[1728394260280,7.26753505,143.48,143.45,17.4274]
[1728394260483,7.26753505,143.48,143.46,1.39393069]
[1728394260822,7.26753505,143.48,143.47,6.97]
[1728394260980,6.9673,143.53,143.47,17.4243]
[1728394261189,7.24606271,143.53,143.51,6.9677]
[1728394261483,6.9659,143.56,143.52,8.36096251]
[1728394261788,14.21184883,143.56,143.52,6.9675]
[1728394261997,7.24604883,143.56,143.52,6.9675]
[1728394262198,7.24604883,143.56,143.53,1.39322677]
[1728394262402,7.24604883,143.56,143.54,6.9665]
[1728394262571,6.965,143.58,143.54,6.9665]
[1728394262767,20.36413829,143.59,143.55,6.9661]
[1728394263083,7.24813829,143.59,143.56,1.3929417]
[1728394263284,7.24813829,143.59,143.55,6.966]
[1728394263487,7.24813829,143.59,143.56,1.39292953]
[1728394263796,7.24813829,143.59,143.56,6.9652]
[1728394263992,6.6079,143.63,143.58,6.9647]
[1728394264239,13.5703,143.63,143.59,1.3926264]
[1728394264505,6.9624,143.63,143.59,8.3568264]
[1728394265188,7.25841721,143.64,143.61,6.9631]
[1728394265390,15.96064441,143.64,143.59,17.4098]
[1728394265591,14.22021721,143.64,143.6,1.39247543]
[1728394265798,8.70301396,143.63,143.59,17.4098]
[1728394266303,6.9624,143.63,143.6,1.39257698]
[1728394266472,14.22031721,143.64,143.6,8.35627698]
[1728394266673,7.25841721,143.64,143.61,17.4076]
[1728394266888,32.6051,143.71,143.61,17.4076]
[1728394266889,6.9599,143.68,143.63,6.9618]
[1728394267085,7.25747763,143.68,143.6,0.12549]
[1728394267292,7.25747763,143.68,143.65,17.4024]
[1728394267533,8.69939862,143.7,143.66,1.3919952]
[1728394267717,1.73992634,143.7,143.65,24.3636]
[1728394267917,1.73992634,143.7,143.62,6.9624]
[1728394267918,6.9609,143.66,143.62,6.9624]
[1728394268104,6.9609,143.66,143.61,24.3703]
[1728394268408,6.9613,143.65,143.61,24.3703]
[1728394268616,6.9609,143.66,143.62,1.39232863]
[1728394268805,6.9619,143.64,143.59,6.9642]
[1728394269417,6.9624,143.63,143.58,17.4114]
[1728394269608,6.9618,143.64,143.6,6.9637]
[1728394269914,6.9618,143.64,143.59,6.9642]
[1728394270111,30.862774,143.67,143.62,6.9627]
[1728394270319,1.74041941,143.69,143.63,8.35433552]
[1728394270540,1.74041941,143.69,143.62,17.4063]
[1728394270728,6.9605,143.67,143.63,6.9622]
[1728394271038,6.9605,143.67,143.62,24.369]
[1728394271611,1.74041941,143.69,143.62,24.369]
[1728394271916,0.12549,143.7,143.62,17.4063]
[1728394272116,6.9619,143.64,143.59,17.4104]
[1728394272313,41.304174,143.67,143.56,39.6719]
[1728394272547,6.9629,143.62,143.57,6.9651]
[1728394272925,6.9634,143.61,143.57,6.9651]
[1728394273329,6.70689,143.63,143.53,6.5407]
[1728394273536,1.74105271,143.62,143.55,6.9657]
[1728394273834,1.74105271,143.62,143.57,6.9648]
[1728394274036,6.9633,143.61,143.56,6.9655]
[1728394274228,6.9628,143.62,143.57,6.9649]
[1728394274534,6.9641,143.6,143.55,24.381]
[1728394274930,6.9639,143.6,143.55,24.3808]
[1728394275134,6.9639,143.6,143.56,6.9656]
[1728394275332,6.9639,143.6,143.55,24.381]
[1728394275638,1.74096946,143.62,143.55,24.381]
[1728394275818,6.9649,143.58,143.53,6.967]
[1728394276218,6.9644,143.59,143.54,6.9666]
[1728394276629,21.74096946,143.62,143.54,6.9666]
[1728394276830,6.9643,143.59,143.55,1.3929506]
[1728394277033,6.9643,143.59,143.55,6.966]
[1728394277221,6.9643,143.59,143.54,6.9666]
[1728394277535,6.9643,143.59,143.55,1.39294921]
[1728394277738,6.9643,143.59,143.54,6.9666]
[1728394278171,6.9643,143.59,143.52,33.3348]
[1728394278172,6.9643,143.59,143.55,8.35894411]
[1728394278338,7.26660159,143.6,143.52,33.3348]
[1728394278339,7.26660159,143.6,143.54,6.9666]
[1728394278649,1.74118558,143.59,143.52,17.4188]
[1728394278827,6.9648,143.58,143.53,1.39310021]
[1728394279150,6.9642,143.59,143.55,6.9661]
[1728394279341,6.9642,143.59,143.56,1.39293246]
[1728394279838,7.26660159,143.6,143.57,6.9651]
[1728394280038,7.26660159,143.6,143.56,25.77193246]
[1728394280223,7.26660159,143.6,143.57,1.39283525]
[1728394280943,7.26660159,143.6,143.56,17.4137]
[1728394281153,7.26660159,143.6,143.57,1.39267084]
[1728394281327,7.26660159,143.6,143.56,17.4137]
[1728394281528,7.26660159,143.6,143.57,1.39267938]
[1728394281953,7.26660159,143.6,143.58,17.4114]
[1728394282126,13.544,143.63,143.58,24.376]
[1728394282324,6.5814,143.63,143.58,24.376]
[1728394282551,6.9629,143.62,143.58,24.376]
[1728394283047,6.9642,143.6,143.55,24.3811]
[1728394283238,6.9637,143.61,143.57,6.9648]
[1728394283446,6.9637,143.61,143.56,6.9655]
[1728394283744,6.5814,143.63,143.52,34.8359]
[1728394283745,15.2846994,143.63,143.57,18.80511952]
[1728394283950,15.2846994,143.63,143.58,6.9646]
[1728394284164,13.5438,143.63,143.59,6.9641]
[1728394284450,14.22802179,143.64,143.6,8.35617489]
[1728394284867,7.26612179,143.64,143.6,6.9636]
[1728394285030,15.96852878,143.64,143.59,17.4103]
[1728394285232,14.22802179,143.64,143.6,6.9637]
[1728394285451,7.26612179,143.64,143.61,6.9631]
[1728394285655,6.9614,143.65,143.61,6.9631]
[1728394285956,14.22606176,143.65,143.61,6.9631]
[1728394286430,6.9614,143.65,143.61,6.9631]
[1728394286628,6.9614,143.65,143.59,17.4103]
[1728394286629,9.00482706,143.66,143.59,17.4103]
[1728394286852,6.9619,143.64,143.6,6.9634]
[1728394287643,6.9613,143.65,143.61,6.9632]
[1728394288134,9.00483297,143.66,143.61,17.4079]
[1728394288382,6.9619,143.64,143.61,17.4079]
[1728394288569,7.26445477,143.66,143.62,1.39242976]
[1728394288750,7.26445477,143.66,143.63,17.4054]
[1728394289059,6.96,143.68,143.64,8.35362641]
[1728394289292,6.96,143.68,143.64,6.9615]
[1728394289437,23.21652537,143.7,143.63,17.4054]
[1728394289438,8.70061161,143.67,143.63,24.3675]
[1728394289641,6.9609,143.66,143.62,6.9627]
[1728394289941,19.13916833,143.69,143.58,34.8216]
[1728394290252,6.9605,143.67,143.63,6.9622]
[1728394290640,6.9605,143.67,143.64,1.39216111]
[1728394290955,1.74036833,143.69,143.63,6.9622]
[1728394291159,6.9602,143.68,143.64,8.35395795]
[1728394291732,14.22772537,143.7,143.66,6.9604]
[1728394291961,22.5404165,143.74,143.67,1.39179708]
[1728394291962,1.73974645,143.73,143.67,1.39179708]
[1728394292157,1.73974645,143.73,143.68,6.9598]
[1728394292158,6.9581,143.72,143.68,6.9598]
[1728394292365,15.96233477,143.73,143.68,6.9595]
[1728394292656,6.958,143.72,143.68,6.9595]
[1728394293052,8.69841449,143.71,143.66,17.4018]
[1728394293263,8.69841449,143.71,143.66,24.3625]
[1728394293567,1.73961449,143.71,143.64,6.9617]
[1728394294068,23.776884,143.71,143.65,8.35336076]
[1728394294274,6.9594,143.69,143.65,6.9613]
[1728394294438,6.9594,143.69,143.66,1.39202282]
[1728394295359,6.9594,143.69,143.66,1.39193306]
[1728394295648,6.9594,143.69,143.66,1.39191496]
[1728394295852,6.959,143.7,143.66,8.35271496]
[1728394296059,6.959,143.7,143.66,6.9608]
[1728394296254,6.9594,143.69,143.65,24.364]
[1728394296659,1.7400238,143.72,143.66,1.39191754]
[1728394296968,6.9587,143.71,143.66,8.35261754]
[1728394297176,6.9587,143.71,143.65,17.4027]
[1728394297352,6.9587,143.71,143.67,6.96]
[1728394297549,7.26468832,143.73,143.69,17.3975]
[1728394297739,0.8597165,143.74,143.72,17.3945]
[1728394298063,0.8597165,143.74,143.73,8.34853377]
[1728394298262,0.8597165,143.74,143.73,6.9574]
[1728394298571,0.8597165,143.74,143.73,8.34856116]
[1728394298910,0.8597165,143.74,143.73,8.59954116]
[1728394299096,0.8597165,143.74,143.73,32.37642516]
[1728394299458,0.8597165,143.74,143.73,30.985264]
[1728394300471,0.8597165,143.74,143.73,32.37608405]
[1728394300858,0.8597165,143.74,143.73,30.985264]
[1728394301555,0.8597165,143.74,143.73,32.3760941]
[1728394301964,0.8597165,143.74,143.73,30.985264]
[1728394302370,0.8597165,143.74,143.73,32.37601961]
[1728394302741,0.8597165,143.74,143.73,30.985264]
[1728394303564,0.8597165,143.74,143.73,7.08289]
[1728394303785,0.8597165,143.74,143.73,6.9574]
[1728394305251,0.8597165,143.74,143.73,32.37620707]
[1728394305464,0.8597165,143.74,143.73,35.83530023]
[1728394305675,0.8597165,143.74,143.73,7.20838]
[1728394306171,0.8597165,143.74,143.73,30.985264]
[1728394307158,0.8597165,143.74,143.73,32.37609722]
[1728394307452,0.8597165,143.74,143.73,30.985264]
[1728394309274,0.8597165,143.74,143.73,32.37609055]
[1728394309650,0.8597165,143.74,143.73,30.985264]
[1728394315148,0.8597165,143.74,143.73,7.20838]
[1728394315686,0.8597165,143.74,143.73,30.985264]
[1728394316266,0.8597165,143.74,143.73,6.9574]
[1728394316479,0.8597165,143.74,143.72,17.3945]
[1728394316686,0.8597165,143.74,143.7,6.9586]
[1728394316978,0.8597165,143.74,143.69,17.3978]
[1728394316979,0.8597165,143.74,143.72,6.9579]
[1728394317351,0.8597165,143.74,143.73,6.9574]
[1728394318881,0.8597165,143.74,143.71,17.3957]
[1728394319064,0.8597165,143.74,143.72,6.9578]
[1728394319387,0.8597165,143.74,143.73,6.9574]
[1728394319759,0.8597165,143.74,143.71,17.3957]
[1728394319960,0.8597165,143.74,143.66,35.48467159]
[1728394320287,9.55597754,143.74,143.7,24.3558]
[1728394320678,2.59897754,143.74,143.7,24.3558]
[1728394320981,2.59897754,143.74,143.66,15.1445]
[1728394320982,0.8597165,143.74,143.73,6.9574]
[1728394321404,0.8597165,143.74,143.73,8.34857045]
[1728394321600,0.8597165,143.74,143.73,8.47406045]
[1728394321768,0.8597165,143.74,143.73,8.59955045]
[1728394322082,0.8597165,143.74,143.73,30.985264]
[1728394323859,0.8597165,143.74,143.73,37.968264]
[1728394324083,0.8597165,143.74,143.73,53.575964]
[1728394324476,0.8597165,143.74,143.73,79.12452641]
[1728394324865,1.65e-05,143.74,143.73,157.4981736]
[1728394325070,17.32860577,143.85,143.81,6.9536]
[1728394325564,15.5901,143.85,143.82,8.34344094]
[1728394325765,15.5901,143.85,143.83,6.9526]
[1728394326076,0.8597165,143.88,143.87,6.9507]
[1728394326897,0.8597165,143.88,143.87,8.34068504]
[1728394327064,0.8597165,143.88,143.87,6.9507]
[1728394327494,0.8597165,143.88,143.87,7.20168]
[1728394328369,0.8597165,143.88,143.87,8.59119529]
[1728394328869,0.8597165,143.88,143.87,7.20168]
[1728394329188,0.8597165,143.88,143.87,6.9507]
[1728394329569,0.8597165,143.88,143.87,8.34035407]
[1728394330397,0.8597165,143.88,143.87,6.9507]
[1728394330761,0.8597165,143.88,143.87,7.07619]
[1728394330958,0.8597165,143.88,143.87,8.59124872]
[1728394331183,0.8597165,143.88,143.87,7.20168]
[1728394331380,0.8597165,143.88,143.87,32.36806924]
[1728394331993,0.8597165,143.88,143.87,8.34024183]
[1728394332298,0.8597165,143.88,143.87,6.9507]
[1728394333775,0.8597165,143.88,143.87,8.34040621]
[1728394334375,0.8597165,143.88,143.87,6.9507]
[1728394334994,0.8597165,143.88,143.87,32.36812091]
[1728394335188,0.8597165,143.88,143.87,30.978564]
[1728394335430,0.8597165,143.88,143.87,6.9507]
[1728394335695,0.8597165,143.88,143.87,8.34053765]
[1728394336494,0.8597165,143.88,143.87,6.9507]
[1728394338578,0.8597165,143.88,143.87,7.20168]
[1728394339019,0.8597165,143.88,143.87,30.978564]
[1728394339701,0.8597165,143.88,143.87,107.961564]
[1728394340795,0.8597165,143.88,143.87,109.35075646]
[1728394340971,7.25239706,143.99,143.87,102.40005646]
[1728394341174,7.25239706,143.99,143.98,6.9454]
[1728394341372,6.3703,144.01,143.97,6.9454]
[1728394341690,6.9444,144.0,143.96,24.3115]
[1728394341866,6.9444,144.0,143.96,17.3653]
[1728394342073,1.73630708,143.99,143.93,17.3688]
[1728394342279,1.73630708,143.99,143.91,34.7429]
[1728394342280,6.9445,144.0,143.95,17.3665]
[1728394342802,6.9455,143.98,143.94,6.9471]
[1728394343092,1.73630693,143.99,143.94,17.368]
[1728394343293,1.73630693,143.99,143.94,24.315]
[1728394343498,6.9457,143.98,143.94,24.315]
[1728394344097,24.027864,144.0,143.94,24.3153]
[1728394344297,25.76443375,144.0,143.93,6.9477]
[1728394344479,6.946,143.97,143.91,52.114]
[1728394344690,6.946,143.97,143.93,6.9474]
[1728394344980,1.73667115,143.96,143.92,6.9482]
[1728394345178,6.946,143.97,143.92,1.38933692]
[1728394345592,6.9454,143.98,143.94,6.9472]
[1728394345800,1.73661023,143.97,143.91,17.3711]
[1728394346106,6.9463,143.96,143.92,6.9481]
[1728394346320,6.4622,143.94,143.88,17.3746]
[1728394346600,6.4622,143.94,143.9,6.9489]
[1728394346601,15.14675165,143.94,143.9,6.9489]
[1728394346782,8.19935165,143.94,143.9,6.9489]
[1728394346984,6.4622,143.94,143.93,6.9478]
[1728394347187,15.9432,143.96,143.88,20.29315242]
[1728394347502,15.9432,143.96,143.94,6.9473]
[1728394347676,6.4622,143.98,143.94,17.368]
[1728394348174,6.9463,143.96,143.92,6.9479]
[1728394348371,8.68244545,143.97,143.93,6.9478]
[1728394349306,6.4622,143.98,143.94,1.38930781]
[1728394349486,13.4077,143.98,143.94,6.9469]
[1728394349878,6.4622,143.98,143.94,6.9469]
[1728394350181,6.4622,143.98,143.95,8.33585209]
[1728394350604,6.4622,143.98,143.95,6.9466]
[1728394351198,6.4622,143.98,143.95,24.3132]
[1728394351503,6.4622,143.98,143.96,8.33531845]
[1728394352081,23.90343178,144.0,143.97,6.9458]
[1728394352296,23.90343178,144.0,143.99,6.9449]
[1728394352633,6.9439,144.01,143.97,24.3096]
[1728394352907,8.32146325,144.02,143.9,132.02055242]
[1728394353084,6.944,144.01,143.97,6.9458]
[1728394353692,15.26496325,144.02,143.98,8.33425287]
[1728394353887,8.32146325,144.02,143.98,1.38895287]
[1728394354084,6.5853,144.02,143.99,6.9448]
[1728394354287,6.5853,144.02,143.98,17.3633]
[1728394354682,13.5288,144.02,143.98,24.3085]
[1728394355812,1.73603699,144.01,143.98,17.3633]
[1728394355990,6.5853,144.02,143.94,1.38897688]
[1728394356196,13.5288,144.02,143.98,6.9453]
[1728394356707,6.5853,144.02,143.99,6.9449]
[1728394357114,6.5853,144.02,143.99,17.3618]
[1728394357911,13.5289,144.02,143.98,6.9452]
[1728394358114,6.5853,144.02,143.96,17.3649]
[1728394358406,13.5289,144.02,143.97,6.9458]
[1728394358720,13.5288,144.02,143.98,6.9449]
[1728394359088,6.5853,144.02,143.99,6.9447]
[1728394359693,6.5853,144.02,144.0,1.3887418]
[1728394359930,19.09595762,144.01,143.94,17.3676]
[1728394360106,1.73585762,144.01,143.9,34.7444]
[1728394360312,17.3613,144.0,143.9,52.1166]
[1728394360505,6.9465,143.96,143.92,6.9478]
[1728394360810,1.73651975,143.99,143.92,17.3705]
[1728394360981,6.9466,143.96,143.92,17.3705]
[1728394361183,16.6375,143.97,143.92,17.3705]
[1728394361383,16.6375,143.97,143.94,17.3677]
[1728394361612,18.3739196,144.0,143.94,17.3677]
[1728394361783,6.9451,143.99,143.94,24.3146]
[1728394361979,6.9451,143.99,143.95,6.9465]
[1728394361980,6.945,143.99,143.95,6.9465]
[1728394362190,6.9449,143.99,143.95,6.9467]
[1728394362413,8.68128253,143.99,143.95,6.9467]
[1728394362597,6.9449,143.99,143.95,1.38909356]
[1728394362907,16.6375,144.0,143.96,6.9462]
[1728394363096,23.582,144.0,143.96,24.3118]
[1728394363631,6.945,143.99,143.95,6.9468]
[1728394363815,23.582,144.0,143.96,8.33533147]
[1728394364000,8.68118955,143.99,143.95,24.3135]
[1728394364217,6.9449,143.99,143.95,24.3135]
[1728394364508,16.6375,144.0,143.96,1.38906171]
[1728394364766,23.582,144.0,143.96,6.9463]
[1728394364895,6.9451,143.99,143.95,17.3668]
[1728394365084,8.68186631,143.98,143.95,17.3668]